Workbook

Sheet लाभ हानि स्टेटमेंट
B1: बारह मासिक | P1: कंपनी नाम
B2: लाभ और हानि प्रोजेक्शन | AB2: वित्तीय वर्ष प्रारंभ: | AC2: जनवरी | AD2: 2012
D4: =UPPER(TEXT(DATE(वित्तीय_वर्ष_प्रारंभ_वर्ष,वित्तीय_वर्ष_माह_संख्या,1),"[$-1010439]mmm-yy")) -> जनवरी-12 | E4: =UPPER(TEXT(DATE(वित्तीय_वर्ष_प्रारंभ_वर्ष,वित्तीय_वर्ष_माह_संख्या+1,1),"[$-1010439]mmm-yy")) -> फरवरी-12 | F4: =UPPER(TEXT(DATE(वित्तीय_वर्ष_प्रारंभ_वर्ष,वित्तीय_वर्ष_माह_संख्या+2,1),"[$-1010439]mmm-yy")) -> मार्च-12 | G4: =UPPER(TEXT(DATE(वित्तीय_वर्ष_प्रारंभ_वर्ष,वित्तीय_वर्ष_माह_संख्या+3,1),"[$-1010439]mmm-yy")) -> अप्रैल-12 | H4: =UPPER(TEXT(DATE(वित्तीय_वर्ष_प्रारंभ_वर्ष,वित्तीय_वर्ष_माह_संख्या+4,1),"[$-1010439]mmm-yy")) -> मई-12 | I4: =UPPER(TEXT(DATE(वित्तीय_वर्ष_प्रारंभ_वर्ष,वित्तीय_वर्ष_माह_संख्या+5,1),"[$-1010439]mmm-yy")) -> जून-12 | J4: =UPPER(TEXT(DATE(वित्तीय_वर्ष_प्रारंभ_वर्ष,वित्तीय_वर्ष_माह_संख्या+6,1),"[$-1010439]mmm-yy")) -> जुलाई-12 | K4: =UPPER(TEXT(DATE(वित्तीय_वर्ष_प्रारंभ_वर्ष,वित्तीय_वर्ष_माह_संख्या+7,1),"[$-1010439]mmm-yy")) -> अगस्त-12 | L4: =UPPER(TEXT(DATE(वित्तीय_वर्ष_प्रारंभ_वर्ष,वित्तीय_वर्ष_माह_संख्या+8,1),"[$-1010439]mmm-yy")) -> सितम्बर-12 | M4: =UPPER(TEXT(DATE(वित्तीय_वर्ष_प्रारंभ_वर्ष,वित्तीय_वर्ष_माह_संख्या+9,1),"[$-1010439]mmm-yy")) -> अक्तूबर-12 | N4: =UPPER(TEXT(DATE(वित्तीय_वर्ष_प्रारंभ_वर्ष,वित्तीय_वर्ष_माह_संख्या+10,1),"[$-1010439]mmm-yy")) -> नवम्बर-12 | O4: =UPPER(TEXT(DATE(वित्तीय_वर्ष_प्रारंभ_वर्ष,वित्तीय_वर्ष_माह_संख्या+11,1),"[$-1010439]mmm-yy")) -> दिसम्बर-12 | P4: वार्षिक | Q4: IND % | R4: =LEFT(D4,1)&" %" -> ज % | S4: =LEFT(E4,1)&" %" -> फ % | T4: म % | U4: अ % | V4: म % | W4: ज % | X4: ज % | Y4: अ % | Z4: स % | AA4: अ % | AB4: न % | AC4: द % | AD4: वर्ष %
B6: आय (विक्रय) | C6: रूझान | D6: m1 | E6: m2 | F6: m3 | G6: m4 | H6: m5 | I6: m6 | J6: m7 | K6: m8 | L6: m9 | M6: m10 | N6: m11 | O6: m12 | P6: Yearly | Q6: Ind % | R6: % m1 | S6: % m2 | T6: % m3 | U6: % m4 | V6: % m5 | W6: % m6 | X6: % m7 | Y6: % m8 | Z6: % m9 | AA6: % m10 | AB6: % m11 | AC6: % m12 | AD6: % y
B7: आय 1 | D7: रु 186.00 | E7: रु 108.00 | F7: रु 92.00 | G7: रु 122.00 | H7: रु 190.00 | I7: रु 71.00 | J7: रु 21.00 | K7: रु 37.00 | L7: रु 24.00 | M7: रु 178.00 | N7: रु 92.00 | O7: रु 97.00 | P7: =SUM(आय_तालिका[[#This Row],[m1]:[m12]]) -> रु 1,218.00 | Q7: 12% | R7: =IFERROR(आय_तालिका[[#This Row],[m1]]/आय_तालिका[[#Totals],[m1]],"-") -> 30% | S7: =IFERROR(आय_तालिका[[#This Row],[m2]]/आय_तालिका[[#Totals],[m2]],"-") -> 15% | T7: =IFERROR(आय_तालिका[[#This Row],[m3]]/आय_तालिका[[#Totals],[m3]],"-") -> 11% | U7: =IFERROR(आय_तालिका[[#This Row],[m4]]/आय_तालिका[[#Totals],[m4]],"-") -> 20% | V7: =IFERROR(आय_तालिका[[#This Row],[m5]]/आय_तालिका[[#Totals],[m5]],"-") -> 23% | W7: =IFERROR(आय_तालिका[[#This Row],[m6]]/आय_तालिका[[#Totals],[m6]],"-") -> 12% | X7: =IFERROR(आय_तालिका[[#This Row],[m7]]/आय_तालिका[[#Totals],[m7]],"-") -> 4% | Y7: =IFERROR(आय_तालिका[[#This Row],[m8]]/आय_तालिका[[#Totals],[m8]],"-") -> 5% | Z7: =IFERROR(आय_तालिका[[#This Row],[m9]]/आय_तालिका[[#Totals],[m9]],"-") -> 3% | AA7: =IFERROR(आय_तालिका[[#This Row],[m10]]/आय_तालिका[[#Totals],[m10]],"-") -> 26% | AB7: =IFERROR(आय_तालिका[[#This Row],[m11]]/आय_तालिका[[#Totals],[m11]],"-") -> 12% | AC7: =IFERROR(आय_तालिका[[#This Row],[m12]]/आय_तालिका[[#Totals],[m12]],"-") -> 9% | AD7: =IFERROR(आय_तालिका[[#This Row],[Yearly]]/आय_तालिका[[#Totals],[Yearly]],"-") -> 14%
B8: आय 2 | D8: रु 15.00 | E8: रु 16.00 | F8: रु 198.00 | G8: रु 44.00 | H8: रु 25.00 | I8: रु 68.00 | J8: रु 43.00 | K8: रु 119.00 | L8: रु 37.00 | M8: रु 118.00 | N8: रु 29.00 | O8: रु 171.00 | P8: =SUM(आय_तालिका[[#This Row],[m1]:[m12]]) -> रु 883.00 | Q8: 18% | R8: =IFERROR(आय_तालिका[[#This Row],[m1]]/आय_तालिका[[#Totals],[m1]],"-") -> 2% | S8: =IFERROR(आय_तालिका[[#This Row],[m2]]/आय_तालिका[[#Totals],[m2]],"-") -> 2% | T8: =IFERROR(आय_तालिका[[#This Row],[m3]]/आय_तालिका[[#Totals],[m3]],"-") -> 24% | U8: =IFERROR(आय_तालिका[[#This Row],[m4]]/आय_तालिका[[#Totals],[m4]],"-") -> 7% | V8: =IFERROR(आय_तालिका[[#This Row],[m5]]/आय_तालिका[[#Totals],[m5]],"-") -> 3% | W8: =IFERROR(आय_तालिका[[#This Row],[m6]]/आय_तालिका[[#Totals],[m6]],"-") -> 12% | X8: =IFERROR(आय_तालिका[[#This Row],[m7]]/आय_तालिका[[#Totals],[m7]],"-") -> 7% | Y8: =IFERROR(आय_तालिका[[#This Row],[m8]]/आय_तालिका[[#Totals],[m8]],"-") -> 18% | Z8: =IFERROR(आय_तालिका[[#This Row],[m9]]/आय_तालिका[[#Totals],[m9]],"-") -> 5% | AA8: =IFERROR(आय_तालिका[[#This Row],[m10]]/आय_तालिका[[#Totals],[m10]],"-") -> 17% | AB8: =IFERROR(आय_तालिका[[#This Row],[m11]]/आय_तालिका[[#Totals],[m11]],"-") -> 4% | AC8: =IFERROR(आय_तालिका[[#This Row],[m12]]/आय_तालिका[[#Totals],[m12]],"-") -> 16% | AD8: =IFERROR(आय_तालिका[[#This Row],[Yearly]]/आय_तालिका[[#Totals],[Yearly]],"-") -> 10%
B9: आय 3 | D9: रु 166.00 | E9: रु 185.00 | F9: रु 89.00 | G9: रु 170.00 | H9: रु 131.00 | I9: रु 70.00 | J9: रु 50.00 | K9: रु 149.00 | L9: रु 179.00 | M9: रु 104.00 | N9: रु 119.00 | O9: रु 187.00 | P9: =SUM(आय_तालिका[[#This Row],[m1]:[m12]]) -> रु 1,599.00 | Q9: 19% | R9: =IFERROR(आय_तालिका[[#This Row],[m1]]/आय_तालिका[[#Totals],[m1]],"-") -> 27% | S9: =IFERROR(आय_तालिका[[#This Row],[m2]]/आय_तालिका[[#Totals],[m2]],"-") -> 25% | T9: =IFERROR(आय_तालिका[[#This Row],[m3]]/आय_तालिका[[#Totals],[m3]],"-") -> 11% | U9: =IFERROR(आय_तालिका[[#This Row],[m4]]/आय_तालिका[[#Totals],[m4]],"-") -> 28% | V9: =IFERROR(आय_तालिका[[#This Row],[m5]]/आय_तालिका[[#Totals],[m5]],"-") -> 16% | W9: =IFERROR(आय_तालिका[[#This Row],[m6]]/आय_तालिका[[#Totals],[m6]],"-") -> 12% | X9: =IFERROR(आय_तालिका[[#This Row],[m7]]/आय_तालिका[[#Totals],[m7]],"-") -> 8% | Y9: =IFERROR(आय_तालिका[[#This Row],[m8]]/आय_तालिका[[#Totals],[m8]],"-") -> 22% | Z9: =IFERROR(आय_तालिका[[#This Row],[m9]]/आय_तालिका[[#Totals],[m9]],"-") -> 24% | AA9: =IFERROR(आय_तालिका[[#This Row],[m10]]/आय_तालिका[[#Totals],[m10]],"-") -> 15% | AB9: =IFERROR(आय_तालिका[[#This Row],[m11]]/आय_तालिका[[#Totals],[m11]],"-") -> 16% | AC9: =IFERROR(आय_तालिका[[#This Row],[m12]]/आय_तालिका[[#Totals],[m12]],"-") -> 18% | AD9: =IFERROR(आय_तालिका[[#This Row],[Yearly]]/आय_तालिका[[#Totals],[Yearly]],"-") -> 18%
B10: आय 4 | D10: रु 21.00 | E10: रु 113.00 | F10: रु 83.00 | G10: रु 17.00 | H10: रु 130.00 | I10: रु 26.00 | J10: रु 167.00 | K10: रु 102.00 | L10: रु 82.00 | M10: रु 33.00 | N10: रु 88.00 | O10: रु 193.00 | P10: =SUM(आय_तालिका[[#This Row],[m1]:[m12]]) -> रु 1,055.00 | Q10: 11% | R10: =IFERROR(आय_तालिका[[#This Row],[m1]]/आय_तालिका[[#Totals],[m1]],"-") -> 3% | S10: =IFERROR(आय_तालिका[[#This Row],[m2]]/आय_तालिका[[#Totals],[m2]],"-") -> 15% | T10: =IFERROR(आय_तालिका[[#This Row],[m3]]/आय_तालिका[[#Totals],[m3]],"-") -> 10% | U10: =IFERROR(आय_तालिका[[#This Row],[m4]]/आय_तालिका[[#Totals],[m4]],"-") -> 3% | V10: =IFERROR(आय_तालिका[[#This Row],[m5]]/आय_तालिका[[#Totals],[m5]],"-") -> 16% | W10: =IFERROR(आय_तालिका[[#This Row],[m6]]/आय_तालिका[[#Totals],[m6]],"-") -> 4% | X10: =IFERROR(आय_तालिका[[#This Row],[m7]]/आय_तालिका[[#Totals],[m7]],"-") -> 28% | Y10: =IFERROR(आय_तालिका[[#This Row],[m8]]/आय_तालिका[[#Totals],[m8]],"-") -> 15% | Z10: =IFERROR(आय_तालिका[[#This Row],[m9]]/आय_तालिका[[#Totals],[m9]],"-") -> 11% | AA10: =IFERROR(आय_तालिका[[#This Row],[m10]]/आय_तालिका[[#Totals],[m10]],"-") -> 5% | AB10: =IFERROR(आय_तालिका[[#This Row],[m11]]/आय_तालिका[[#Totals],[m11]],"-") -> 12% | AC10: =IFERROR(आय_तालिका[[#This Row],[m12]]/आय_तालिका[[#Totals],[m12]],"-") -> 19% | AD10: =IFERROR(आय_तालिका[[#This Row],[Yearly]]/आय_तालिका[[#Totals],[Yearly]],"-") -> 12%
B11: आय 5 | D11: रु 70.00 | E11: रु 160.00 | F11: रु 125.00 | G11: रु 84.00 | H11: रु 191.00 | I11: रु 97.00 | J11: रु 52.00 | K11: रु 45.00 | L11: रु 173.00 | M11: रु 136.00 | N11: रु 144.00 | O11: रु 167.00 | P11: =SUM(आय_तालिका[[#This Row],[m1]:[m12]]) -> रु 1,444.00 | Q11: 20% | R11: =IFERROR(आय_तालिका[[#This Row],[m1]]/आय_तालिका[[#Totals],[m1]],"-") -> 11% | S11: =IFERROR(आय_तालिका[[#This Row],[m2]]/आय_तालिका[[#Totals],[m2]],"-") -> 22% | T11: =IFERROR(आय_तालिका[[#This Row],[m3]]/आय_तालिका[[#Totals],[m3]],"-") -> 15% | U11: =IFERROR(आय_तालिका[[#This Row],[m4]]/आय_तालिका[[#Totals],[m4]],"-") -> 14% | V11: =IFERROR(आय_तालिका[[#This Row],[m5]]/आय_तालिका[[#Totals],[m5]],"-") -> 24% | W11: =IFERROR(आय_तालिका[[#This Row],[m6]]/आय_तालिका[[#Totals],[m6]],"-") -> 17% | X11: =IFERROR(आय_तालिका[[#This Row],[m7]]/आय_तालिका[[#Totals],[m7]],"-") -> 9% | Y11: =IFERROR(आय_तालिका[[#This Row],[m8]]/आय_तालिका[[#Totals],[m8]],"-") -> 7% | Z11: =IFERROR(आय_तालिका[[#This Row],[m9]]/आय_तालिका[[#Totals],[m9]],"-") -> 23% | AA11: =IFERROR(आय_तालिका[[#This Row],[m10]]/आय_तालिका[[#Totals],[m10]],"-") -> 20% | AB11: =IFERROR(आय_तालिका[[#This Row],[m11]]/आय_तालिका[[#Totals],[m11]],"-") -> 19% | AC11: =IFERROR(आय_तालिका[[#This Row],[m12]]/आय_तालिका[[#Totals],[m12]],"-") -> 16% | AD11: =IFERROR(आय_तालिका[[#This Row],[Yearly]]/आय_तालिका[[#Totals],[Yearly]],"-") -> 17%
B12: आय 6 | D12: रु 61.00 | E12: रु 99.00 | F12: रु 70.00 | G12: रु 162.00 | H12: रु 28.00 | I12: रु 163.00 | J12: रु 101.00 | K12: रु 103.00 | L12: रु 78.00 | M12: रु 33.00 | N12: रु 162.00 | O12: रु 159.00 | P12: =SUM(आय_तालिका[[#This Row],[m1]:[m12]]) -> रु 1,219.00 | Q12: 10% | R12: =IFERROR(आय_तालिका[[#This Row],[m1]]/आय_तालिका[[#Totals],[m1]],"-") -> 10% | S12: =IFERROR(आय_तालिका[[#This Row],[m2]]/आय_तालिका[[#Totals],[m2]],"-") -> 13% | T12: =IFERROR(आय_तालिका[[#This Row],[m3]]/आय_तालिका[[#Totals],[m3]],"-") -> 9% | U12: =IFERROR(आय_तालिका[[#This Row],[m4]]/आय_तालिका[[#Totals],[m4]],"-") -> 27% | V12: =IFERROR(आय_तालिका[[#This Row],[m5]]/आय_तालिका[[#Totals],[m5]],"-") -> 3% | W12: =IFERROR(आय_तालिका[[#This Row],[m6]]/आय_तालिका[[#Totals],[m6]],"-") -> 28% | X12: =IFERROR(आय_तालिका[[#This Row],[m7]]/आय_तालिका[[#Totals],[m7]],"-") -> 17% | Y12: =IFERROR(आय_तालिका[[#This Row],[m8]]/आय_तालिका[[#Totals],[m8]],"-") -> 15% | Z12: =IFERROR(आय_तालिका[[#This Row],[m9]]/आय_तालिका[[#Totals],[m9]],"-") -> 10% | AA12: =IFERROR(आय_तालिका[[#This Row],[m10]]/आय_तालिका[[#Totals],[m10]],"-") -> 5% | AB12: =IFERROR(आय_तालिका[[#This Row],[m11]]/आय_तालिका[[#Totals],[m11]],"-") -> 22% | AC12: =IFERROR(आय_तालिका[[#This Row],[m12]]/आय_तालिका[[#Totals],[m12]],"-") -> 15% | AD12: =IFERROR(आय_तालिका[[#This Row],[Yearly]]/आय_तालिका[[#Totals],[Yearly]],"-") -> 14%
B13: आय 7 | D13: रु 105.00 | E13: रु 55.00 | F13: रु 163.00 | G13: रु 12.00 | H13: रु 117.00 | I13: रु 83.00 | J13: रु 163.00 | K13: रु 120.00 | L13: रु 171.00 | M13: रु 79.00 | N13: रु 105.00 | O13: रु 69.00 | P13: =SUM(आय_तालिका[[#This Row],[m1]:[m12]]) -> रु 1,242.00 | Q13: 10% | R13: =IFERROR(आय_तालिका[[#This Row],[m1]]/आय_तालिका[[#Totals],[m1]],"-") -> 17% | S13: =IFERROR(आय_तालिका[[#This Row],[m2]]/आय_तालिका[[#Totals],[m2]],"-") -> 7% | T13: =IFERROR(आय_तालिका[[#This Row],[m3]]/आय_तालिका[[#Totals],[m3]],"-") -> 20% | U13: =IFERROR(आय_तालिका[[#This Row],[m4]]/आय_तालिका[[#Totals],[m4]],"-") -> 2% | V13: =IFERROR(आय_तालिका[[#This Row],[m5]]/आय_तालिका[[#Totals],[m5]],"-") -> 14% | W13: =IFERROR(आय_तालिका[[#This Row],[m6]]/आय_तालिका[[#Totals],[m6]],"-") -> 14% | X13: =IFERROR(आय_तालिका[[#This Row],[m7]]/आय_तालिका[[#Totals],[m7]],"-") -> 27% | Y13: =IFERROR(आय_तालिका[[#This Row],[m8]]/आय_तालिका[[#Totals],[m8]],"-") -> 18% | Z13: =IFERROR(आय_तालिका[[#This Row],[m9]]/आय_तालिका[[#Totals],[m9]],"-") -> 23% | AA13: =IFERROR(आय_तालिका[[#This Row],[m10]]/आय_तालिका[[#Totals],[m10]],"-") -> 12% | AB13: =IFERROR(आय_तालिका[[#This Row],[m11]]/आय_तालिका[[#Totals],[m11]],"-") -> 14% | AC13: =IFERROR(आय_तालिका[[#This Row],[m12]]/आय_तालिका[[#Totals],[m12]],"-") -> 7% | AD13: =IFERROR(आय_तालिका[[#This Row],[Yearly]]/आय_तालिका[[#Totals],[Yearly]],"-") -> 14%
B14: कुल विक्रय | D14: =SUBTOTAL(109,आय_तालिका[m1]) -> रु 624.00 | E14: =SUBTOTAL(109,आय_तालिका[m2]) -> रु 736.00 | F14: =SUBTOTAL(109,आय_तालिका[m3]) -> रु 820.00 | G14: =SUBTOTAL(109,आय_तालिका[m4]) -> रु 611.00 | H14: =SUBTOTAL(109,आय_तालिका[m5]) -> रु 812.00 | I14: =SUBTOTAL(109,आय_तालिका[m6]) -> रु 578.00 | J14: =SUBTOTAL(109,आय_तालिका[m7]) -> रु 597.00 | K14: =SUBTOTAL(109,आय_तालिका[m8]) -> रु 675.00 | L14: =SUBTOTAL(109,आय_तालिका[m9]) -> रु 744.00 | M14: =SUBTOTAL(109,आय_तालिका[m10]) -> रु 681.00 | N14: =SUBTOTAL(109,आय_तालिका[m11]) -> रु 739.00 | O14: =SUBTOTAL(109,आय_तालिका[m12]) -> रु 1,043.00 | P14: =SUBTOTAL(109,आय_तालिका[Yearly]) -> रु 8,660.00 | Q14: =SUBTOTAL(109,आय_तालिका[Ind %]) -> 100% | R14: =SUBTOTAL(109,आय_तालिका[% m1]) -> 100% | S14: =SUBTOTAL(109,आय_तालिका[% m2]) -> 100% | T14: =SUBTOTAL(109,आय_तालिका[% m3]) -> 100% | U14: =SUBTOTAL(109,आय_तालिका[% m4]) -> 100% | V14: =SUBTOTAL(109,आय_तालिका[% m5]) -> 100% | W14: =SUBTOTAL(109,आय_तालिका[% m6]) -> 100% | X14: =SUBTOTAL(109,आय_तालिका[% m7]) -> 100% | Y14: =SUBTOTAL(109,आय_तालिका[% m8]) -> 100% | Z14: =SUBTOTAL(109,आय_तालिका[% m9]) -> 100% | AA14: =SUBTOTAL(109,आय_तालिका[% m10]) -> 100% | AB14: =SUBTOTAL(109,आय_तालिका[% m11]) -> 100% | AC14: =SUBTOTAL(109,आय_तालिका[% m12]) -> 100% | AD14: =SUBTOTAL(109,आय_तालिका[% y]) -> 100%
B16: विक्रय लागत | C16: रूझान | D16: m1 | E16: m2 | F16: m3 | G16: m4 | H16: m5 | I16: m6 | J16: m7 | K16: m8 | L16: m9 | M16: m10 | N16: m11 | O16: m12 | P16: Yearly | Q16: Ind % | R16: % m1 | S16: % m2 | T16: % m3 | U16: % m4 | V16: % m5 | W16: % m6 | X16: % m7 | Y16: % m8 | Z16: % m9 | AA16: % m10 | AB16: % m11 | AC16: % m12 | AD16: % y
B17: लागत 1 | D17: रु 61.00 | E17: रु 78.00 | F17: रु 65.00 | G17: रु 29.00 | H17: रु 125.00 | I17: रु 49.00 | J17: रु 14.00 | K17: रु 26.00 | L17: रु 14.00 | M17: रु 129.00 | N17: रु 60.00 | O17: रु 65.00 | P17: =SUM(विक्रय_लागत_तालिका[[#This Row],[m1]:[m12]]) -> रु 715.00 | Q17: 12% | R17: =IFERROR(विक्रय_लागत_तालिका[[#This Row],[m1]]/विक्रय_लागत_तालिका[[#Totals],[m1]],"-") -> 23% | S17: =IFERROR(विक्रय_लागत_तालिका[[#This Row],[m2]]/विक्रय_लागत_तालिका[[#Totals],[m2]],"-") -> 22% | T17: =IFERROR(विक्रय_लागत_तालिका[[#This Row],[m3]]/विक्रय_लागत_तालिका[[#Totals],[m3]],"-") -> 21% | U17: =IFERROR(विक्रय_लागत_तालिका[[#This Row],[m4]]/विक्रय_लागत_तालिका[[#Totals],[m4]],"-") -> 12% | V17: =IFERROR(विक्रय_लागत_तालिका[[#This Row],[m5]]/विक्रय_लागत_तालिका[[#Totals],[m5]],"-") -> 31% | W17: =IFERROR(विक्रय_लागत_तालिका[[#This Row],[m6]]/विक्रय_लागत_तालिका[[#Totals],[m6]],"-") -> 16% | X17: =IFERROR(विक्रय_लागत_तालिका[[#This Row],[m7]]/विक्रय_लागत_तालिका[[#Totals],[m7]],"-") -> 5% | Y17: =IFERROR(विक्रय_लागत_तालिका[[#This Row],[m8]]/विक्रय_लागत_तालिका[[#Totals],[m8]],"-") -> 12% | Z17: =IFERROR(विक्रय_लागत_तालिका[[#This Row],[m9]]/विक्रय_लागत_तालिका[[#Totals],[m9]],"-") -> 3% | AA17: =IFERROR(विक्रय_लागत_तालिका[[#This Row],[m10]]/विक्रय_लागत_तालिका[[#Totals],[m10]],"-") -> 47% | AB17: =IFERROR(विक्रय_लागत_तालिका[[#This Row],[m11]]/विक्रय_लागत_तालिका[[#Totals],[m11]],"-") -> 23% | AC17: =IFERROR(विक्रय_लागत_तालिका[[#This Row],[m12]]/विक्रय_लागत_तालिका[[#Totals],[m12]],"-") -> 14% | AD17: =IFERROR(विक्रय_लागत_तालिका[[#This Row],[Yearly]]/विक्रय_लागत_तालिका[[#Totals],[Yearly]],"-") -> 19%
B18: लागत 2 | D18: रु 7.00 | E18: रु 5.00 | F18: रु 69.00 | G18: रु 32.00 | H18: रु 11.00 | I18: रु 30.00 | J18: रु 27.00 | K18: रु 32.00 | L18: रु 10.00 | M18: रु 41.00 | N18: रु 13.00 | O18: रु 105.00 | P18: =SUM(विक्रय_लागत_तालिका[[#This Row],[m1]:[m12]]) -> रु 382.00 | Q18: 18% | R18: =IFERROR(विक्रय_लागत_तालिका[[#This Row],[m1]]/विक्रय_लागत_तालिका[[#Totals],[m1]],"-") -> 3% | S18: =IFERROR(विक्रय_लागत_तालिका[[#This Row],[m2]]/विक्रय_लागत_तालिका[[#Totals],[m2]],"-") -> 1% | T18: =IFERROR(विक्रय_लागत_तालिका[[#This Row],[m3]]/विक्रय_लागत_तालिका[[#Totals],[m3]],"-") -> 22% | U18: =IFERROR(विक्रय_लागत_तालिका[[#This Row],[m4]]/विक्रय_लागत_तालिका[[#Totals],[m4]],"-") -> 13% | V18: =IFERROR(विक्रय_लागत_तालिका[[#This Row],[m5]]/विक्रय_लागत_तालिका[[#Totals],[m5]],"-") -> 3% | W18: =IFERROR(विक्रय_लागत_तालिका[[#This Row],[m6]]/विक्रय_लागत_तालिका[[#Totals],[m6]],"-") -> 10% | X18: =IFERROR(विक्रय_लागत_तालिका[[#This Row],[m7]]/विक्रय_लागत_तालिका[[#Totals],[m7]],"-") -> 9% | Y18: =IFERROR(विक्रय_लागत_तालिका[[#This Row],[m8]]/विक्रय_लागत_तालिका[[#Totals],[m8]],"-") -> 14% | Z18: =IFERROR(विक्रय_लागत_तालिका[[#This Row],[m9]]/विक्रय_लागत_तालिका[[#Totals],[m9]],"-") -> 2% | AA18: =IFERROR(विक्रय_लागत_तालिका[[#This Row],[m10]]/विक्रय_लागत_तालिका[[#Totals],[m10]],"-") -> 15% | AB18: =IFERROR(विक्रय_लागत_तालिका[[#This Row],[m11]]/विक्रय_लागत_तालिका[[#Totals],[m11]],"-") -> 5% | AC18: =IFERROR(विक्रय_लागत_तालिका[[#This Row],[m12]]/विक्रय_लागत_तालिका[[#Totals],[m12]],"-") -> 23% | AD18: =IFERROR(विक्रय_लागत_तालिका[[#This Row],[Yearly]]/विक्रय_लागत_तालिका[[#Totals],[Yearly]],"-") -> 10%
B19: लागत 3 | D19: रु 99.00 | E19: रु 95.00 | F19: रु 51.00 | G19: रु 90.00 | H19: रु 21.00 | I19: रु 34.00 | J19: रु 30.00 | K19: रु 24.00 | L19: रु 109.00 | M19: रु 16.00 | N19: रु 21.00 | O19: रु 52.00 | P19: =SUM(विक्रय_लागत_तालिका[[#This Row],[m1]:[m12]]) -> रु 642.00 | Q19: 19% | R19: =IFERROR(विक्रय_लागत_तालिका[[#This Row],[m1]]/विक्रय_लागत_तालिका[[#Totals],[m1]],"-") -> 37% | S19: =IFERROR(विक्रय_लागत_तालिका[[#This Row],[m2]]/विक्रय_लागत_तालिका[[#Totals],[m2]],"-") -> 27% | T19: =IFERROR(विक्रय_लागत_तालिका[[#This Row],[m3]]/विक्रय_लागत_तालिका[[#Totals],[m3]],"-") -> 16% | U19: =IFERROR(विक्रय_लागत_तालिका[[#This Row],[m4]]/विक्रय_लागत_तालिका[[#Totals],[m4]],"-") -> 37% | V19: =IFERROR(विक्रय_लागत_तालिका[[#This Row],[m5]]/विक्रय_लागत_तालिका[[#Totals],[m5]],"-") -> 5% | W19: =IFERROR(विक्रय_लागत_तालिका[[#This Row],[m6]]/विक्रय_लागत_तालिका[[#Totals],[m6]],"-") -> 11% | X19: =IFERROR(विक्रय_लागत_तालिका[[#This Row],[m7]]/विक्रय_लागत_तालिका[[#Totals],[m7]],"-") -> 10% | Y19: =IFERROR(विक्रय_लागत_तालिका[[#This Row],[m8]]/विक्रय_लागत_तालिका[[#Totals],[m8]],"-") -> 11% | Z19: =IFERROR(विक्रय_लागत_तालिका[[#This Row],[m9]]/विक्रय_लागत_तालिका[[#Totals],[m9]],"-") -> 26% | AA19: =IFERROR(विक्रय_लागत_तालिका[[#This Row],[m10]]/विक्रय_लागत_तालिका[[#Totals],[m10]],"-") -> 6% | AB19: =IFERROR(विक्रय_लागत_तालिका[[#This Row],[m11]]/विक्रय_लागत_तालिका[[#Totals],[m11]],"-") -> 8% | AC19: =IFERROR(विक्रय_लागत_तालिका[[#This Row],[m12]]/विक्रय_लागत_तालिका[[#Totals],[m12]],"-") -> 11% | AD19: =IFERROR(विक्रय_लागत_तालिका[[#This Row],[Yearly]]/विक्रय_लागत_तालिका[[#Totals],[Yearly]],"-") -> 17%
B20: लागत 4 | D20: रु 13.00 | E20: रु 28.00 | F20: रु 15.00 | G20: रु 8.00 | H20: रु 84.00 | I20: रु 12.00 | J20: रु 54.00 | K20: रु 72.00 | L20: रु 49.00 | M20: रु 24.00 | N20: रु 60.00 | O20: रु 39.00 | P20: =SUM(विक्रय_लागत_तालिका[[#This Row],[m1]:[m12]]) -> रु 458.00 | Q20: 11% | R20: =IFERROR(विक्रय_लागत_तालिका[[#This Row],[m1]]/विक्रय_लागत_तालिका[[#Totals],[m1]],"-") -> 5% | S20: =IFERROR(विक्रय_लागत_तालिका[[#This Row],[m2]]/विक्रय_लागत_तालिका[[#Totals],[m2]],"-") -> 8% | T20: =IFERROR(विक्रय_लागत_तालिका[[#This Row],[m3]]/विक्रय_लागत_तालिका[[#Totals],[m3]],"-") -> 5% | U20: =IFERROR(विक्रय_लागत_तालिका[[#This Row],[m4]]/विक्रय_लागत_तालिका[[#Totals],[m4]],"-") -> 3% | V20: =IFERROR(विक्रय_लागत_तालिका[[#This Row],[m5]]/विक्रय_लागत_तालिका[[#Totals],[m5]],"-") -> 21% | W20: =IFERROR(विक्रय_लागत_तालिका[[#This Row],[m6]]/विक्रय_लागत_तालिका[[#Totals],[m6]],"-") -> 4% | X20: =IFERROR(विक्रय_लागत_तालिका[[#This Row],[m7]]/विक्रय_लागत_तालिका[[#Totals],[m7]],"-") -> 18% | Y20: =IFERROR(विक्रय_लागत_तालिका[[#This Row],[m8]]/विक्रय_लागत_तालिका[[#Totals],[m8]],"-") -> 32% | Z20: =IFERROR(विक्रय_लागत_तालिका[[#This Row],[m9]]/विक्रय_लागत_तालिका[[#Totals],[m9]],"-") -> 12% | AA20: =IFERROR(विक्रय_लागत_तालिका[[#This Row],[m10]]/विक्रय_लागत_तालिका[[#Totals],[m10]],"-") -> 9% | AB20: =IFERROR(विक्रय_लागत_तालिका[[#This Row],[m11]]/विक्रय_लागत_तालिका[[#Totals],[m11]],"-") -> 23% | AC20: =IFERROR(विक्रय_लागत_तालिका[[#This Row],[m12]]/विक्रय_लागत_तालिका[[#Totals],[m12]],"-") -> 9% | AD20: =IFERROR(विक्रय_लागत_तालिका[[#This Row],[Yearly]]/विक्रय_लागत_तालिका[[#Totals],[Yearly]],"-") -> 12%
B21: लागत 5 | D21: रु 34.00 | E21: रु 78.00 | F21: रु 43.00 | G21: रु 30.00 | H21: रु 77.00 | I21: रु 54.00 | J21: रु 26.00 | K21: रु 13.00 | L21: रु 56.00 | M21: रु 30.00 | N21: रु 40.00 | O21: रु 63.00 | P21: =SUM(विक्रय_लागत_तालिका[[#This Row],[m1]:[m12]]) -> रु 544.00 | Q21: 20% | R21: =IFERROR(विक्रय_लागत_तालिका[[#This Row],[m1]]/विक्रय_लागत_तालिका[[#Totals],[m1]],"-") -> 13% | S21: =IFERROR(विक्रय_लागत_तालिका[[#This Row],[m2]]/विक्रय_लागत_तालिका[[#Totals],[m2]],"-") -> 22% | T21: =IFERROR(विक्रय_लागत_तालिका[[#This Row],[m3]]/विक्रय_लागत_तालिका[[#Totals],[m3]],"-") -> 14% | U21: =IFERROR(विक्रय_लागत_तालिका[[#This Row],[m4]]/विक्रय_लागत_तालिका[[#Totals],[m4]],"-") -> 12% | V21: =IFERROR(विक्रय_लागत_तालिका[[#This Row],[m5]]/विक्रय_लागत_तालिका[[#Totals],[m5]],"-") -> 19% | W21: =IFERROR(विक्रय_लागत_तालिका[[#This Row],[m6]]/विक्रय_लागत_तालिका[[#Totals],[m6]],"-") -> 17% | X21: =IFERROR(विक्रय_लागत_तालिका[[#This Row],[m7]]/विक्रय_लागत_तालिका[[#Totals],[m7]],"-") -> 9% | Y21: =IFERROR(विक्रय_लागत_तालिका[[#This Row],[m8]]/विक्रय_लागत_तालिका[[#Totals],[m8]],"-") -> 6% | Z21: =IFERROR(विक्रय_लागत_तालिका[[#This Row],[m9]]/विक्रय_लागत_तालिका[[#Totals],[m9]],"-") -> 14% | AA21: =IFERROR(विक्रय_लागत_तालिका[[#This Row],[m10]]/विक्रय_लागत_तालिका[[#Totals],[m10]],"-") -> 11% | AB21: =IFERROR(विक्रय_लागत_तालिका[[#This Row],[m11]]/विक्रय_लागत_तालिका[[#Totals],[m11]],"-") -> 15% | AC21: =IFERROR(विक्रय_लागत_तालिका[[#This Row],[m12]]/विक्रय_लागत_तालिका[[#Totals],[m12]],"-") -> 14% | AD21: =IFERROR(विक्रय_लागत_तालिका[[#This Row],[Yearly]]/विक्रय_लागत_तालिका[[#Totals],[Yearly]],"-") -> 14%
B22: लागत 6 | D22: रु 33.00 | E22: रु 61.00 | F22: रु 42.00 | G22: रु 43.00 | H22: रु 19.00 | I22: रु 94.00 | J22: रु 46.00 | K22: रु 15.00 | L22: रु 55.00 | M22: रु 15.00 | N22: रु 37.00 | O22: रु 89.00 | P22: =SUM(विक्रय_लागत_तालिका[[#This Row],[m1]:[m12]]) -> रु 549.00 | Q22: 10% | R22: =IFERROR(विक्रय_लागत_तालिका[[#This Row],[m1]]/विक्रय_लागत_तालिका[[#Totals],[m1]],"-") -> 12% | S22: =IFERROR(विक्रय_लागत_तालिका[[#This Row],[m2]]/विक्रय_लागत_तालिका[[#Totals],[m2]],"-") -> 17% | T22: =IFERROR(विक्रय_लागत_तालिका[[#This Row],[m3]]/विक्रय_लागत_तालिका[[#Totals],[m3]],"-") -> 13% | U22: =IFERROR(विक्रय_लागत_तालिका[[#This Row],[m4]]/विक्रय_लागत_तालिका[[#Totals],[m4]],"-") -> 18% | V22: =IFERROR(विक्रय_लागत_तालिका[[#This Row],[m5]]/विक्रय_लागत_तालिका[[#Totals],[m5]],"-") -> 5% | W22: =IFERROR(विक्रय_लागत_तालिका[[#This Row],[m6]]/विक्रय_लागत_तालिका[[#Totals],[m6]],"-") -> 30% | X22: =IFERROR(विक्रय_लागत_तालिका[[#This Row],[m7]]/विक्रय_लागत_तालिका[[#Totals],[m7]],"-") -> 15% | Y22: =IFERROR(विक्रय_लागत_तालिका[[#This Row],[m8]]/विक्रय_लागत_तालिका[[#Totals],[m8]],"-") -> 7% | Z22: =IFERROR(विक्रय_लागत_तालिका[[#This Row],[m9]]/विक्रय_लागत_तालिका[[#Totals],[m9]],"-") -> 13% | AA22: =IFERROR(विक्रय_लागत_तालिका[[#This Row],[m10]]/विक्रय_लागत_तालिका[[#Totals],[m10]],"-") -> 5% | AB22: =IFERROR(विक्रय_लागत_तालिका[[#This Row],[m11]]/विक्रय_लागत_तालिका[[#Totals],[m11]],"-") -> 14% | AC22: =IFERROR(विक्रय_लागत_तालिका[[#This Row],[m12]]/विक्रय_लागत_तालिका[[#Totals],[m12]],"-") -> 20% | AD22: =IFERROR(विक्रय_लागत_तालिका[[#This Row],[Yearly]]/विक्रय_लागत_तालिका[[#Totals],[Yearly]],"-") -> 14%
B23: लागत 7 | D23: रु 18.00 | E23: रु 11.00 | F23: रु 30.00 | G23: रु 9.00 | H23: रु 62.00 | I23: रु 39.00 | J23: रु 102.00 | K23: रु 44.00 | L23: रु 121.00 | M23: रु 19.00 | N23: रु 33.00 | O23: रु 40.00 | P23: =SUM(विक्रय_लागत_तालिका[[#This Row],[m1]:[m12]]) -> रु 528.00 | Q23: 10% | R23: =IFERROR(विक्रय_लागत_तालिका[[#This Row],[m1]]/विक्रय_लागत_तालिका[[#Totals],[m1]],"-") -> 7% | S23: =IFERROR(विक्रय_लागत_तालिका[[#This Row],[m2]]/विक्रय_लागत_तालिका[[#Totals],[m2]],"-") -> 3% | T23: =IFERROR(विक्रय_लागत_तालिका[[#This Row],[m3]]/विक्रय_लागत_तालिका[[#Totals],[m3]],"-") -> 10% | U23: =IFERROR(विक्रय_लागत_तालिका[[#This Row],[m4]]/विक्रय_लागत_तालिका[[#Totals],[m4]],"-") -> 4% | V23: =IFERROR(विक्रय_लागत_तालिका[[#This Row],[m5]]/विक्रय_लागत_तालिका[[#Totals],[m5]],"-") -> 16% | W23: =IFERROR(विक्रय_लागत_तालिका[[#This Row],[m6]]/विक्रय_लागत_तालिका[[#Totals],[m6]],"-") -> 13% | X23: =IFERROR(विक्रय_लागत_तालिका[[#This Row],[m7]]/विक्रय_लागत_तालिका[[#Totals],[m7]],"-") -> 34% | Y23: =IFERROR(विक्रय_लागत_तालिका[[#This Row],[m8]]/विक्रय_लागत_तालिका[[#Totals],[m8]],"-") -> 19% | Z23: =IFERROR(विक्रय_लागत_तालिका[[#This Row],[m9]]/विक्रय_लागत_तालिका[[#Totals],[m9]],"-") -> 29% | AA23: =IFERROR(विक्रय_लागत_तालिका[[#This Row],[m10]]/विक्रय_लागत_तालिका[[#Totals],[m10]],"-") -> 7% | AB23: =IFERROR(विक्रय_लागत_तालिका[[#This Row],[m11]]/विक्रय_लागत_तालिका[[#Totals],[m11]],"-") -> 13% | AC23: =IFERROR(विक्रय_लागत_तालिका[[#This Row],[m12]]/विक्रय_लागत_तालिका[[#Totals],[m12]],"-") -> 9% | AD23: =IFERROR(विक्रय_लागत_तालिका[[#This Row],[Yearly]]/विक्रय_लागत_तालिका[[#Totals],[Yearly]],"-") -> 14%
B24: कुल विक्रय लागत | D24: =SUBTOTAL(109,विक्रय_लागत_तालिका[m1]) -> रु 265.00 | E24: =SUBTOTAL(109,विक्रय_लागत_तालिका[m2]) -> रु 356.00 | F24: =SUBTOTAL(109,विक्रय_लागत_तालिका[m3]) -> रु 315.00 | G24: =SUBTOTAL(109,विक्रय_लागत_तालिका[m4]) -> रु 241.00 | H24: =SUBTOTAL(109,विक्रय_लागत_तालिका[m5]) -> रु 399.00 | I24: =SUBTOTAL(109,विक्रय_लागत_तालिका[m6]) -> रु 312.00 | J24: =SUBTOTAL(109,विक्रय_लागत_तालिका[m7]) -> रु 299.00 | K24: =SUBTOTAL(109,विक्रय_लागत_तालिका[m8]) -> रु 226.00 | L24: =SUBTOTAL(109,विक्रय_लागत_तालिका[m9]) -> रु 414.00 | M24: =SUBTOTAL(109,विक्रय_लागत_तालिका[m10]) -> रु 274.00 | N24: =SUBTOTAL(109,विक्रय_लागत_तालिका[m11]) -> रु 264.00 | O24: =SUBTOTAL(109,विक्रय_लागत_तालिका[m12]) -> रु 453.00 | P24: =SUBTOTAL(109,विक्रय_लागत_तालिका[Yearly]) -> रु 3,818.00 | Q24: =SUBTOTAL(109,विक्रय_लागत_तालिका[Ind %]) -> 100% | R24: =SUBTOTAL(109,विक्रय_लागत_तालिका[% m1]) -> 100% | S24: =SUBTOTAL(109,विक्रय_लागत_तालिका[% m2]) -> 100% | T24: =SUBTOTAL(109,विक्रय_लागत_तालिका[% m3]) -> 100% | U24: =SUBTOTAL(109,विक्रय_लागत_तालिका[% m4]) -> 100% | V24: =SUBTOTAL(109,विक्रय_लागत_तालिका[% m5]) -> 100% | W24: =SUBTOTAL(109,विक्रय_लागत_तालिका[% m6]) -> 100% | X24: =SUBTOTAL(109,विक्रय_लागत_तालिका[% m7]) -> 100% | Y24: =SUBTOTAL(109,विक्रय_लागत_तालिका[% m8]) -> 100% | Z24: =SUBTOTAL(109,विक्रय_लागत_तालिका[% m9]) -> 100% | AA24: =SUBTOTAL(109,विक्रय_लागत_तालिका[% m10]) -> 100% | AB24: =SUBTOTAL(109,विक्रय_लागत_तालिका[% m11]) -> 100% | AC24: =SUBTOTAL(109,विक्रय_लागत_तालिका[% m12]) -> 100% | AD24: =SUBTOTAL(109,विक्रय_लागत_तालिका[% y]) -> 100%
B26: सकल लाभ | D26: =आय_तालिका[[#Totals],[m1]]-विक्रय_लागत_तालिका[[#Totals],[m1]] -> रु 359.00 | E26: =आय_तालिका[[#Totals],[m2]]-विक्रय_लागत_तालिका[[#Totals],[m2]] -> रु 380.00 | F26: =आय_तालिका[[#Totals],[m3]]-विक्रय_लागत_तालिका[[#Totals],[m3]] -> रु 505.00 | G26: =आय_तालिका[[#Totals],[m4]]-विक्रय_लागत_तालिका[[#Totals],[m4]] -> रु 370.00 | H26: =आय_तालिका[[#Totals],[m5]]-विक्रय_लागत_तालिका[[#Totals],[m5]] -> रु 413.00 | I26: =आय_तालिका[[#Totals],[m6]]-विक्रय_लागत_तालिका[[#Totals],[m6]] -> रु 266.00 | J26: =आय_तालिका[[#Totals],[m7]]-विक्रय_लागत_तालिका[[#Totals],[m7]] -> रु 298.00 | K26: =आय_तालिका[[#Totals],[m8]]-विक्रय_लागत_तालिका[[#Totals],[m8]] -> रु 449.00 | L26: =आय_तालिका[[#Totals],[m9]]-विक्रय_लागत_तालिका[[#Totals],[m9]] -> रु 330.00 | M26: =आय_तालिका[[#Totals],[m10]]-विक्रय_लागत_तालिका[[#Totals],[m10]] -> रु 407.00 | N26: =आय_तालिका[[#Totals],[m11]]-विक्रय_लागत_तालिका[[#Totals],[m11]] -> रु 475.00 | O26: =आय_तालिका[[#Totals],[m12]]-विक्रय_लागत_तालिका[[#Totals],[m12]] -> रु 590.00 | P26: =आय_तालिका[[#Totals],[Yearly]]-विक्रय_लागत_तालिका[[#Totals],[Yearly]] -> रु 4,842.00 | R26: =D26/$P$26 -> 7% | S26: =E26/$P$26 -> 8% | T26: 10% | U26: 8% | V26: 9% | W26: 5% | X26: 6% | Y26: 9% | Z26: 7% | AA26: 8% | AB26: 10% | AC26: 12% | AD26: 100%
B28: व्यय | C28: रूझान | D28: m1 | E28: m2 | F28: m3 | G28: m4 | H28: m5 | I28: m6 | J28: m7 | K28: m8 | L28: m9 | M28: m10 | N28: m11 | O28: m12 | P28: Yearly | Q28: Ind % | R28: % m1 | S28: % m2 | T28: % m3 | U28: % m4 | V28: % m5 | W28: % m6 | X28: % m7 | Y28: % m8 | Z28: % m9 | AA28: % m10 | AB28: % m11 | AC28: % m12 | AD28: % y
B29: वेतन व्यय | D29: रु 10.00 | E29: रु 18.00 | F29: रु 13.00 | G29: रु 8.00 | H29: रु 22.00 | I29: रु 18.00 | J29: रु 8.00 | K29: रु 17.00 | L29: रु 20.00 | M29: रु 8.00 | N29: रु 4.00 | O29: रु 12.00 | P29: =SUM(व्यय_तालिका[[#This Row],[m1]:[m12]]) -> रु 158.00 | Q29: 12% | R29: =व्यय_तालिका[[#This Row],[m1]]/व्यय_तालिका[[#Totals],[m1]] -> 4% | S29: =व्यय_तालिका[[#This Row],[m2]]/व्यय_तालिका[[#Totals],[m2]] -> 9% | T29: =व्यय_तालिका[[#This Row],[m3]]/व्यय_तालिका[[#Totals],[m3]] -> 5% | U29: =व्यय_तालिका[[#This Row],[m4]]/व्यय_तालिका[[#Totals],[m4]] -> 3% | V29: =व्यय_तालिका[[#This Row],[m5]]/व्यय_तालिका[[#Totals],[m5]] -> 9% | W29: =व्यय_तालिका[[#This Row],[m6]]/व्यय_तालिका[[#Totals],[m6]] -> 7% | X29: =व्यय_तालिका[[#This Row],[m7]]/व्यय_तालिका[[#Totals],[m7]] -> 3% | Y29: =व्यय_तालिका[[#This Row],[m8]]/व्यय_तालिका[[#Totals],[m8]] -> 7% | Z29: =व्यय_तालिका[[#This Row],[m9]]/व्यय_तालिका[[#Totals],[m9]] -> 9% | AA29: =व्यय_तालिका[[#This Row],[m10]]/व्यय_तालिका[[#Totals],[m10]] -> 3% | AB29: =व्यय_तालिका[[#This Row],[m11]]/व्यय_तालिका[[#Totals],[m11]] -> 1% | AC29: =व्यय_तालिका[[#This Row],[m12]]/व्यय_तालिका[[#Totals],[m12]] -> 5% | AD29: =व्यय_तालिका[[#This Row],[Yearly]]/व्यय_तालिका[[#Totals],[Yearly]] -> 5%
B30: पेरोल व्यय | D30: रु 23.00 | E30: रु 11.00 | F30: रु 7.00 | G30: रु 14.00 | H30: रु 12.00 | I30: रु 19.00 | J30: रु 19.00 | K30: रु 4.00 | L30: रु 7.00 | M30: रु 13.00 | N30: रु 25.00 | O30: रु 5.00 | P30: =SUM(व्यय_तालिका[[#This Row],[m1]:[m12]]) -> रु 159.00 | Q30: 9% | R30: =व्यय_तालिका[[#This Row],[m1]]/व्यय_तालिका[[#Totals],[m1]] -> 10% | S30: =व्यय_तालिका[[#This Row],[m2]]/व्यय_तालिका[[#Totals],[m2]] -> 5% | T30: =व्यय_तालिका[[#This Row],[m3]]/व्यय_तालिका[[#Totals],[m3]] -> 3% | U30: =व्यय_तालिका[[#This Row],[m4]]/व्यय_तालिका[[#Totals],[m4]] -> 5% | V30: =व्यय_तालिका[[#This Row],[m5]]/व्यय_तालिका[[#Totals],[m5]] -> 5% | W30: =व्यय_तालिका[[#This Row],[m6]]/व्यय_तालिका[[#Totals],[m6]] -> 7% | X30: =व्यय_तालिका[[#This Row],[m7]]/व्यय_तालिका[[#Totals],[m7]] -> 7% | Y30: =व्यय_तालिका[[#This Row],[m8]]/व्यय_तालिका[[#Totals],[m8]] -> 2% | Z30: =व्यय_तालिका[[#This Row],[m9]]/व्यय_तालिका[[#Totals],[m9]] -> 3% | AA30: =व्यय_तालिका[[#This Row],[m10]]/व्यय_तालिका[[#Totals],[m10]] -> 5% | AB30: =व्यय_तालिका[[#This Row],[m11]]/व्यय_तालिका[[#Totals],[m11]] -> 8% | AC30: =व्यय_तालिका[[#This Row],[m12]]/व्यय_तालिका[[#Totals],[m12]] -> 2% | AD30: =व्यय_तालिका[[#This Row],[Yearly]]/व्यय_तालिका[[#Totals],[Yearly]] -> 5%
B31: बाह्य सेवाएँ | D31: रु 23.00 | E31: रु 20.00 | F31: रु 3.00 | G31: रु 16.00 | H31: रु 10.00 | I31: रु 5.00 | J31: रु 20.00 | K31: रु 7.00 | L31: रु 4.00 | M31: रु 22.00 | N31: रु 13.00 | O31: रु 14.00 | P31: =SUM(व्यय_तालिका[[#This Row],[m1]:[m12]]) -> रु 157.00 | Q31: 2% | R31: =व्यय_तालिका[[#This Row],[m1]]/व्यय_तालिका[[#Totals],[m1]] -> 10% | S31: =व्यय_तालिका[[#This Row],[m2]]/व्यय_तालिका[[#Totals],[m2]] -> 10% | T31: =व्यय_तालिका[[#This Row],[m3]]/व्यय_तालिका[[#Totals],[m3]] -> 1% | U31: =व्यय_तालिका[[#This Row],[m4]]/व्यय_तालिका[[#Totals],[m4]] -> 6% | V31: =व्यय_तालिका[[#This Row],[m5]]/व्यय_तालिका[[#Totals],[m5]] -> 4% | W31: =व्यय_तालिका[[#This Row],[m6]]/व्यय_तालिका[[#Totals],[m6]] -> 2% | X31: =व्यय_तालिका[[#This Row],[m7]]/व्यय_तालिका[[#Totals],[m7]] -> 8% | Y31: =व्यय_तालिका[[#This Row],[m8]]/व्यय_तालिका[[#Totals],[m8]] -> 3% | Z31: =व्यय_तालिका[[#This Row],[m9]]/व्यय_तालिका[[#Totals],[m9]] -> 2% | AA31: =व्यय_तालिका[[#This Row],[m10]]/व्यय_तालिका[[#Totals],[m10]] -> 8% | AB31: =व्यय_तालिका[[#This Row],[m11]]/व्यय_तालिका[[#Totals],[m11]] -> 4% | AC31: =व्यय_तालिका[[#This Row],[m12]]/व्यय_तालिका[[#Totals],[m12]] -> 6% | AD31: =व्यय_तालिका[[#This Row],[Yearly]]/व्यय_तालिका[[#Totals],[Yearly]] -> 5%
B32: आपूर्ति (कार्यालय और परिचालन) | D32: रु 19.00 | E32: रु 4.00 | F32: रु 7.00 | G32: रु 14.00 | H32: रु 22.00 | I32: रु 10.00 | J32: रु 22.00 | K32: रु 5.00 | L32: रु 4.00 | M32: रु 12.00 | N32: रु 18.00 | O32: रु 24.00 | P32: =SUM(व्यय_तालिका[[#This Row],[m1]:[m12]]) -> रु 161.00 | Q32: 8% | R32: =व्यय_तालिका[[#This Row],[m1]]/व्यय_तालिका[[#Totals],[m1]] -> 8% | S32: =व्यय_तालिका[[#This Row],[m2]]/व्यय_तालिका[[#Totals],[m2]] -> 2% | T32: =व्यय_तालिका[[#This Row],[m3]]/व्यय_तालिका[[#Totals],[m3]] -> 3% | U32: =व्यय_तालिका[[#This Row],[m4]]/व्यय_तालिका[[#Totals],[m4]] -> 5% | V32: =व्यय_तालिका[[#This Row],[m5]]/व्यय_तालिका[[#Totals],[m5]] -> 9% | W32: =व्यय_तालिका[[#This Row],[m6]]/व्यय_तालिका[[#Totals],[m6]] -> 4% | X32: =व्यय_तालिका[[#This Row],[m7]]/व्यय_तालिका[[#Totals],[m7]] -> 8% | Y32: =व्यय_तालिका[[#This Row],[m8]]/व्यय_तालिका[[#Totals],[m8]] -> 2% | Z32: =व्यय_तालिका[[#This Row],[m9]]/व्यय_तालिका[[#Totals],[m9]] -> 2% | AA32: =व्यय_तालिका[[#This Row],[m10]]/व्यय_तालिका[[#Totals],[m10]] -> 5% | AB32: =व्यय_तालिका[[#This Row],[m11]]/व्यय_तालिका[[#Totals],[m11]] -> 6% | AC32: =व्यय_तालिका[[#This Row],[m12]]/व्यय_तालिका[[#Totals],[m12]] -> 10% | AD32: =व्यय_तालिका[[#This Row],[Yearly]]/व्यय_तालिका[[#Totals],[Yearly]] -> 5%
B33: मरम्मत और रखरखाव | D33: रु 11.00 | E33: रु 11.00 | F33: रु 17.00 | G33: रु 12.00 | H33: रु 2.00 | I33: रु 14.00 | J33: रु 12.00 | K33: रु 10.00 | L33: रु 18.00 | M33: रु 11.00 | N33: रु 23.00 | O33: रु 11.00 | P33: =SUM(व्यय_तालिका[[#This Row],[m1]:[m12]]) -> रु 152.00 | Q33: 3% | R33: =व्यय_तालिका[[#This Row],[m1]]/व्यय_तालिका[[#Totals],[m1]] -> 5% | S33: =व्यय_तालिका[[#This Row],[m2]]/व्यय_तालिका[[#Totals],[m2]] -> 5% | T33: =व्यय_तालिका[[#This Row],[m3]]/व्यय_तालिका[[#Totals],[m3]] -> 7% | U33: =व्यय_तालिका[[#This Row],[m4]]/व्यय_तालिका[[#Totals],[m4]] -> 5% | V33: =व्यय_तालिका[[#This Row],[m5]]/व्यय_तालिका[[#Totals],[m5]] -> 1% | W33: =व्यय_तालिका[[#This Row],[m6]]/व्यय_तालिका[[#Totals],[m6]] -> 5% | X33: =व्यय_तालिका[[#This Row],[m7]]/व्यय_तालिका[[#Totals],[m7]] -> 5% | Y33: =व्यय_तालिका[[#This Row],[m8]]/व्यय_तालिका[[#Totals],[m8]] -> 4% | Z33: =व्यय_तालिका[[#This Row],[m9]]/व्यय_तालिका[[#Totals],[m9]] -> 8% | AA33: =व्यय_तालिका[[#This Row],[m10]]/व्यय_तालिका[[#Totals],[m10]] -> 4% | AB33: =व्यय_तालिका[[#This Row],[m11]]/व्यय_तालिका[[#Totals],[m11]] -> 8% | AC33: =व्यय_तालिका[[#This Row],[m12]]/व्यय_तालिका[[#Totals],[m12]] -> 5% | AD33: =व्यय_तालिका[[#This Row],[Yearly]]/व्यय_तालिका[[#Totals],[Yearly]] -> 5%
B34: विज्ञापन | D34: रु 2.00 | E34: रु 16.00 | F34: रु 6.00 | G34: रु 13.00 | H34: रु 11.00 | I34: रु 22.00 | J34: रु 21.00 | K34: रु 3.00 | L34: रु 12.00 | M34: रु 7.00 | N34: रु 17.00 | O34: रु 20.00 | P34: =SUM(व्यय_तालिका[[#This Row],[m1]:[m12]]) -> रु 150.00 | Q34: 15% | R34: =व्यय_तालिका[[#This Row],[m1]]/व्यय_तालिका[[#Totals],[m1]] -> 1% | S34: =व्यय_तालिका[[#This Row],[m2]]/व्यय_तालिका[[#Totals],[m2]] -> 8% | T34: =व्यय_तालिका[[#This Row],[m3]]/व्यय_तालिका[[#Totals],[m3]] -> 2% | U34: =व्यय_तालिका[[#This Row],[m4]]/व्यय_तालिका[[#Totals],[m4]] -> 5% | V34: =व्यय_तालिका[[#This Row],[m5]]/व्यय_तालिका[[#Totals],[m5]] -> 4% | W34: =व्यय_तालिका[[#This Row],[m6]]/व्यय_तालिका[[#Totals],[m6]] -> 8% | X34: =व्यय_तालिका[[#This Row],[m7]]/व्यय_तालिका[[#Totals],[m7]] -> 8% | Y34: =व्यय_तालिका[[#This Row],[m8]]/व्यय_तालिका[[#Totals],[m8]] -> 1% | Z34: =व्यय_तालिका[[#This Row],[m9]]/व्यय_तालिका[[#Totals],[m9]] -> 5% | AA34: =व्यय_तालिका[[#This Row],[m10]]/व्यय_तालिका[[#Totals],[m10]] -> 3% | AB34: =व्यय_तालिका[[#This Row],[m11]]/व्यय_तालिका[[#Totals],[m11]] -> 6% | AC34: =व्यय_तालिका[[#This Row],[m12]]/व्यय_तालिका[[#Totals],[m12]] -> 9% | AD34: =व्यय_तालिका[[#This Row],[Yearly]]/व्यय_तालिका[[#Totals],[Yearly]] -> 5%
B35: कार, वितरण और यात्रा | D35: रु 8.00 | E35: रु 17.00 | F35: रु 11.00 | G35: रु 11.00 | H35: रु 21.00 | I35: रु 9.00 | J35: रु 20.00 | K35: रु 3.00 | L35: रु 14.00 | M35: रु 22.00 | N35: रु 16.00 | O35: रु 12.00 | P35: =SUM(व्यय_तालिका[[#This Row],[m1]:[m12]]) -> रु 164.00 | Q35: 12% | R35: =व्यय_तालिका[[#This Row],[m1]]/व्यय_तालिका[[#Totals],[m1]] -> 3% | S35: =व्यय_तालिका[[#This Row],[m2]]/व्यय_तालिका[[#Totals],[m2]] -> 8% | T35: =व्यय_तालिका[[#This Row],[m3]]/व्यय_तालिका[[#Totals],[m3]] -> 4% | U35: =व्यय_तालिका[[#This Row],[m4]]/व्यय_तालिका[[#Totals],[m4]] -> 4% | V35: =व्यय_तालिका[[#This Row],[m5]]/व्यय_तालिका[[#Totals],[m5]] -> 8% | W35: =व्यय_तालिका[[#This Row],[m6]]/व्यय_तालिका[[#Totals],[m6]] -> 3% | X35: =व्यय_तालिका[[#This Row],[m7]]/व्यय_तालिका[[#Totals],[m7]] -> 8% | Y35: =व्यय_तालिका[[#This Row],[m8]]/व्यय_तालिका[[#Totals],[m8]] -> 1% | Z35: =व्यय_तालिका[[#This Row],[m9]]/व्यय_तालिका[[#Totals],[m9]] -> 6% | AA35: =व्यय_तालिका[[#This Row],[m10]]/व्यय_तालिका[[#Totals],[m10]] -> 8% | AB35: =व्यय_तालिका[[#This Row],[m11]]/व्यय_तालिका[[#Totals],[m11]] -> 5% | AC35: =व्यय_तालिका[[#This Row],[m12]]/व्यय_तालिका[[#Totals],[m12]] -> 5% | AD35: =व्यय_तालिका[[#This Row],[Yearly]]/व्यय_तालिका[[#Totals],[Yearly]] -> 5%
B36: लेखांकन और कानूनी | D36: रु 5.00 | E36: रु 13.00 | F36: रु 6.00 | G36: रु 15.00 | H36: रु 19.00 | I36: रु 10.00 | J36: रु 12.00 | K36: रु 9.00 | L36: रु 15.00 | M36: रु 16.00 | N36: रु 4.00 | O36: रु 9.00 | P36: =SUM(व्यय_तालिका[[#This Row],[m1]:[m12]]) -> रु 133.00 | Q36: 9% | R36: =व्यय_तालिका[[#This Row],[m1]]/व्यय_तालिका[[#Totals],[m1]] -> 2% | S36: =व्यय_तालिका[[#This Row],[m2]]/व्यय_तालिका[[#Totals],[m2]] -> 6% | T36: =व्यय_तालिका[[#This Row],[m3]]/व्यय_तालिका[[#Totals],[m3]] -> 2% | U36: =व्यय_तालिका[[#This Row],[m4]]/व्यय_तालिका[[#Totals],[m4]] -> 6% | V36: =व्यय_तालिका[[#This Row],[m5]]/व्यय_तालिका[[#Totals],[m5]] -> 7% | W36: =व्यय_तालिका[[#This Row],[m6]]/व्यय_तालिका[[#Totals],[m6]] -> 4% | X36: =व्यय_तालिका[[#This Row],[m7]]/व्यय_तालिका[[#Totals],[m7]] -> 5% | Y36: =व्यय_तालिका[[#This Row],[m8]]/व्यय_तालिका[[#Totals],[m8]] -> 4% | Z36: =व्यय_तालिका[[#This Row],[m9]]/व्यय_तालिका[[#Totals],[m9]] -> 7% | AA36: =व्यय_तालिका[[#This Row],[m10]]/व्यय_तालिका[[#Totals],[m10]] -> 6% | AB36: =व्यय_तालिका[[#This Row],[m11]]/व्यय_तालिका[[#Totals],[m11]] -> 1% | AC36: =व्यय_तालिका[[#This Row],[m12]]/व्यय_तालिका[[#Totals],[m12]] -> 4% | AD36: =व्यय_तालिका[[#This Row],[Yearly]]/व्यय_तालिका[[#Totals],[Yearly]] -> 4%
B37: किराया | D37: रु 8.00 | E37: रु 4.00 | F37: रु 23.00 | G37: रु 25.00 | H37: रु 10.00 | I37: रु 24.00 | J37: रु 22.00 | K37: रु 5.00 | L37: रु 12.00 | M37: रु 24.00 | N37: रु 24.00 | O37: रु 12.00 | P37: =SUM(व्यय_तालिका[[#This Row],[m1]:[m12]]) -> रु 193.00 | Q37: 1% | R37: =व्यय_तालिका[[#This Row],[m1]]/व्यय_तालिका[[#Totals],[m1]] -> 3% | S37: =व्यय_तालिका[[#This Row],[m2]]/व्यय_तालिका[[#Totals],[m2]] -> 2% | T37: =व्यय_तालिका[[#This Row],[m3]]/व्यय_तालिका[[#Totals],[m3]] -> 9% | U37: =व्यय_तालिका[[#This Row],[m4]]/व्यय_तालिका[[#Totals],[m4]] -> 10% | V37: =व्यय_तालिका[[#This Row],[m5]]/व्यय_तालिका[[#Totals],[m5]] -> 4% | W37: =व्यय_तालिका[[#This Row],[m6]]/व्यय_तालिका[[#Totals],[m6]] -> 9% | X37: =व्यय_तालिका[[#This Row],[m7]]/व्यय_तालिका[[#Totals],[m7]] -> 8% | Y37: =व्यय_तालिका[[#This Row],[m8]]/व्यय_तालिका[[#Totals],[m8]] -> 2% | Z37: =व्यय_तालिका[[#This Row],[m9]]/व्यय_तालिका[[#Totals],[m9]] -> 5% | AA37: =व्यय_तालिका[[#This Row],[m10]]/व्यय_तालिका[[#Totals],[m10]] -> 9% | AB37: =व्यय_तालिका[[#This Row],[m11]]/व्यय_तालिका[[#Totals],[m11]] -> 8% | AC37: =व्यय_तालिका[[#This Row],[m12]]/व्यय_तालिका[[#Totals],[m12]] -> 5% | AD37: =व्यय_तालिका[[#This Row],[Yearly]]/व्यय_तालिका[[#Totals],[Yearly]] -> 6%
B38: टेलीफ़ोन | D38: रु 25.00 | E38: रु 2.00 | F38: रु 12.00 | G38: रु 25.00 | H38: रु 10.00 | I38: रु 24.00 | J38: रु 3.00 | K38: रु 20.00 | L38: रु 3.00 | M38: रु 9.00 | N38: रु 20.00 | O38: रु 18.00 | P38: =SUM(व्यय_तालिका[[#This Row],[m1]:[m12]]) -> रु 171.00 | Q38: 1% | R38: =व्यय_तालिका[[#This Row],[m1]]/व्यय_तालिका[[#Totals],[m1]] -> 11% | S38: =व्यय_तालिका[[#This Row],[m2]]/व्यय_तालिका[[#Totals],[m2]] -> 1% | T38: =व्यय_तालिका[[#This Row],[m3]]/व्यय_तालिका[[#Totals],[m3]] -> 5% | U38: =व्यय_तालिका[[#This Row],[m4]]/व्यय_तालिका[[#Totals],[m4]] -> 10% | V38: =व्यय_तालिका[[#This Row],[m5]]/व्यय_तालिका[[#Totals],[m5]] -> 4% | W38: =व्यय_तालिका[[#This Row],[m6]]/व्यय_तालिका[[#Totals],[m6]] -> 9% | X38: =व्यय_तालिका[[#This Row],[m7]]/व्यय_तालिका[[#Totals],[m7]] -> 1% | Y38: =व्यय_तालिका[[#This Row],[m8]]/व्यय_तालिका[[#Totals],[m8]] -> 9% | Z38: =व्यय_तालिका[[#This Row],[m9]]/व्यय_तालिका[[#Totals],[m9]] -> 1% | AA38: =व्यय_तालिका[[#This Row],[m10]]/व्यय_तालिका[[#Totals],[m10]] -> 3% | AB38: =व्यय_तालिका[[#This Row],[m11]]/व्यय_तालिका[[#Totals],[m11]] -> 7% | AC38: =व्यय_तालिका[[#This Row],[m12]]/व्यय_तालिका[[#Totals],[m12]] -> 8% | AD38: =व्यय_तालिका[[#This Row],[Yearly]]/व्यय_तालिका[[#Totals],[Yearly]] -> 6%
B39: उपयोगिताएँ | D39: रु 16.00 | E39: रु 19.00 | F39: रु 9.00 | G39: रु 16.00 | H39: रु 13.00 | I39: रु 2.00 | J39: रु 4.00 | K39: रु 24.00 | L39: रु 16.00 | M39: रु 22.00 | N39: रु 7.00 | O39: रु 18.00 | P39: =SUM(व्यय_तालिका[[#This Row],[m1]:[m12]]) -> रु 166.00 | Q39: 1% | R39: =व्यय_तालिका[[#This Row],[m1]]/व्यय_तालिका[[#Totals],[m1]] -> 7% | S39: =व्यय_तालिका[[#This Row],[m2]]/व्यय_तालिका[[#Totals],[m2]] -> 9% | T39: =व्यय_तालिका[[#This Row],[m3]]/व्यय_तालिका[[#Totals],[m3]] -> 4% | U39: =व्यय_तालिका[[#This Row],[m4]]/व्यय_तालिका[[#Totals],[m4]] -> 6% | V39: =व्यय_तालिका[[#This Row],[m5]]/व्यय_तालिका[[#Totals],[m5]] -> 5% | W39: =व्यय_तालिका[[#This Row],[m6]]/व्यय_तालिका[[#Totals],[m6]] -> 1% | X39: =व्यय_तालिका[[#This Row],[m7]]/व्यय_तालिका[[#Totals],[m7]] -> 2% | Y39: =व्यय_तालिका[[#This Row],[m8]]/व्यय_तालिका[[#Totals],[m8]] -> 10% | Z39: =व्यय_तालिका[[#This Row],[m9]]/व्यय_तालिका[[#Totals],[m9]] -> 7% | AA39: =व्यय_तालिका[[#This Row],[m10]]/व्यय_तालिका[[#Totals],[m10]] -> 8% | AB39: =व्यय_तालिका[[#This Row],[m11]]/व्यय_तालिका[[#Totals],[m11]] -> 2% | AC39: =व्यय_तालिका[[#This Row],[m12]]/व्यय_तालिका[[#Totals],[m12]] -> 8% | AD39: =व्यय_तालिका[[#This Row],[Yearly]]/व्यय_तालिका[[#Totals],[Yearly]] -> 6%
B40: बीमा | D40: रु 12.00 | E40: रु 9.00 | F40: रु 16.00 | G40: रु 19.00 | H40: रु 25.00 | I40: रु 17.00 | J40: रु 20.00 | K40: रु 14.00 | L40: रु 5.00 | M40: रु 14.00 | N40: रु 5.00 | O40: रु 2.00 | P40: =SUM(व्यय_तालिका[[#This Row],[m1]:[m12]]) -> रु 158.00 | Q40: 1% | R40: =व्यय_तालिका[[#This Row],[m1]]/व्यय_तालिका[[#Totals],[m1]] -> 5% | S40: =व्यय_तालिका[[#This Row],[m2]]/व्यय_तालिका[[#Totals],[m2]] -> 4% | T40: =व्यय_तालिका[[#This Row],[m3]]/व्यय_तालिका[[#Totals],[m3]] -> 6% | U40: =व्यय_तालिका[[#This Row],[m4]]/व्यय_तालिका[[#Totals],[m4]] -> 7% | V40: =व्यय_तालिका[[#This Row],[m5]]/व्यय_तालिका[[#Totals],[m5]] -> 10% | W40: =व्यय_तालिका[[#This Row],[m6]]/व्यय_तालिका[[#Totals],[m6]] -> 6% | X40: =व्यय_तालिका[[#This Row],[m7]]/व्यय_तालिका[[#Totals],[m7]] -> 8% | Y40: =व्यय_तालिका[[#This Row],[m8]]/व्यय_तालिका[[#Totals],[m8]] -> 6% | Z40: =व्यय_तालिका[[#This Row],[m9]]/व्यय_तालिका[[#Totals],[m9]] -> 2% | AA40: =व्यय_तालिका[[#This Row],[m10]]/व्यय_तालिका[[#Totals],[m10]] -> 5% | AB40: =व्यय_तालिका[[#This Row],[m11]]/व्यय_तालिका[[#Totals],[m11]] -> 2% | AC40: =व्यय_तालिका[[#This Row],[m12]]/व्यय_तालिका[[#Totals],[m12]] -> 1% | AD40: =व्यय_तालिका[[#This Row],[Yearly]]/व्यय_तालिका[[#Totals],[Yearly]] -> 5%
B41: कर (रियल इस्टेट, इत्यादि) | D41: रु 16.00 | E41: रु 13.00 | F41: रु 10.00 | G41: रु 7.00 | H41: रु 13.00 | I41: रु 3.00 | J41: रु 13.00 | K41: रु 17.00 | L41: रु 9.00 | M41: रु 4.00 | N41: रु 22.00 | O41: रु 18.00 | P41: =SUM(व्यय_तालिका[[#This Row],[m1]:[m12]]) -> रु 145.00 | Q41: 14% | R41: =व्यय_तालिका[[#This Row],[m1]]/व्यय_तालिका[[#Totals],[m1]] -> 7% | S41: =व्यय_तालिका[[#This Row],[m2]]/व्यय_तालिका[[#Totals],[m2]] -> 6% | T41: =व्यय_तालिका[[#This Row],[m3]]/व्यय_तालिका[[#Totals],[m3]] -> 4% | U41: =व्यय_तालिका[[#This Row],[m4]]/व्यय_तालिका[[#Totals],[m4]] -> 3% | V41: =व्यय_तालिका[[#This Row],[m5]]/व्यय_तालिका[[#Totals],[m5]] -> 5% | W41: =व्यय_तालिका[[#This Row],[m6]]/व्यय_तालिका[[#Totals],[m6]] -> 1% | X41: =व्यय_तालिका[[#This Row],[m7]]/व्यय_तालिका[[#Totals],[m7]] -> 5% | Y41: =व्यय_तालिका[[#This Row],[m8]]/व्यय_तालिका[[#Totals],[m8]] -> 7% | Z41: =व्यय_तालिका[[#This Row],[m9]]/व्यय_तालिका[[#Totals],[m9]] -> 4% | AA41: =व्यय_तालिका[[#This Row],[m10]]/व्यय_तालिका[[#Totals],[m10]] -> 2% | AB41: =व्यय_तालिका[[#This Row],[m11]]/व्यय_तालिका[[#Totals],[m11]] -> 7% | AC41: =व्यय_तालिका[[#This Row],[m12]]/व्यय_तालिका[[#Totals],[m12]] -> 8% | AD41: =व्यय_तालिका[[#This Row],[Yearly]]/व्यय_तालिका[[#Totals],[Yearly]] -> 5%
B42: ब्याज | D42: रु 3.00 | E42: रु 2.00 | F42: रु 19.00 | G42: रु 21.00 | H42: रु 13.00 | I42: रु 9.00 | J42: रु 7.00 | K42: रु 13.00 | L42: रु 3.00 | M42: रु 6.00 | N42: रु 10.00 | O42: रु 13.00 | P42: =SUM(व्यय_तालिका[[#This Row],[m1]:[m12]]) -> रु 119.00 | Q42: 6% | R42: =व्यय_तालिका[[#This Row],[m1]]/व्यय_तालिका[[#Totals],[m1]] -> 1% | S42: =व्यय_तालिका[[#This Row],[m2]]/व्यय_तालिका[[#Totals],[m2]] -> 1% | T42: =व्यय_तालिका[[#This Row],[m3]]/व्यय_तालिका[[#Totals],[m3]] -> 8% | U42: =व्यय_तालिका[[#This Row],[m4]]/व्यय_तालिका[[#Totals],[m4]] -> 8% | V42: =व्यय_तालिका[[#This Row],[m5]]/व्यय_तालिका[[#Totals],[m5]] -> 5% | W42: =व्यय_तालिका[[#This Row],[m6]]/व्यय_तालिका[[#Totals],[m6]] -> 3% | X42: =व्यय_तालिका[[#This Row],[m7]]/व्यय_तालिका[[#Totals],[m7]] -> 3% | Y42: =व्यय_तालिका[[#This Row],[m8]]/व्यय_तालिका[[#Totals],[m8]] -> 6% | Z42: =व्यय_तालिका[[#This Row],[m9]]/व्यय_तालिका[[#Totals],[m9]] -> 1% | AA42: =व्यय_तालिका[[#This Row],[m10]]/व्यय_तालिका[[#Totals],[m10]] -> 2% | AB42: =व्यय_तालिका[[#This Row],[m11]]/व्यय_तालिका[[#Totals],[m11]] -> 3% | AC42: =व्यय_तालिका[[#This Row],[m12]]/व्यय_तालिका[[#Totals],[m12]] -> 6% | AD42: =व्यय_तालिका[[#This Row],[Yearly]]/व्यय_तालिका[[#Totals],[Yearly]] -> 4%
B43: मूल्यह्रास | D43: रु 8.00 | E43: रु 7.00 | F43: रु 6.00 | G43: रु 7.00 | H43: रु 7.00 | I43: रु 6.00 | J43: रु 15.00 | K43: रु 23.00 | L43: रु 21.00 | M43: रु 16.00 | N43: रु 19.00 | O43: रु 7.00 | P43: =SUM(व्यय_तालिका[[#This Row],[m1]:[m12]]) -> रु 142.00 | Q43: 1% | R43: =व्यय_तालिका[[#This Row],[m1]]/व्यय_तालिका[[#Totals],[m1]] -> 3% | S43: =व्यय_तालिका[[#This Row],[m2]]/व्यय_तालिका[[#Totals],[m2]] -> 3% | T43: =व्यय_तालिका[[#This Row],[m3]]/व्यय_तालिका[[#Totals],[m3]] -> 2% | U43: =व्यय_तालिका[[#This Row],[m4]]/व्यय_तालिका[[#Totals],[m4]] -> 3% | V43: =व्यय_तालिका[[#This Row],[m5]]/व्यय_तालिका[[#Totals],[m5]] -> 3% | W43: =व्यय_तालिका[[#This Row],[m6]]/व्यय_तालिका[[#Totals],[m6]] -> 2% | X43: =व्यय_तालिका[[#This Row],[m7]]/व्यय_तालिका[[#Totals],[m7]] -> 6% | Y43: =व्यय_तालिका[[#This Row],[m8]]/व्यय_तालिका[[#Totals],[m8]] -> 10% | Z43: =व्यय_तालिका[[#This Row],[m9]]/व्यय_तालिका[[#Totals],[m9]] -> 9% | AA43: =व्यय_तालिका[[#This Row],[m10]]/व्यय_तालिका[[#Totals],[m10]] -> 6% | AB43: =व्यय_तालिका[[#This Row],[m11]]/व्यय_तालिका[[#Totals],[m11]] -> 6% | AC43: =व्यय_तालिका[[#This Row],[m12]]/व्यय_तालिका[[#Totals],[m12]] -> 3% | AD43: =व्यय_तालिका[[#This Row],[Yearly]]/व्यय_तालिका[[#Totals],[Yearly]] -> 5%
B44: अन्य व्यय (निर्दिष्ट करें) | D44: रु 14.00 | E44: रु 4.00 | F44: रु 24.00 | G44: रु 6.00 | H44: रु 20.00 | I44: रु 14.00 | J44: रु 21.00 | K44: रु 20.00 | L44: रु 22.00 | M44: रु 3.00 | N44: रु 14.00 | O44: रु 6.00 | P44: =SUM(व्यय_तालिका[[#This Row],[m1]:[m12]]) -> रु 168.00 | Q44: 1% | R44: =व्यय_तालिका[[#This Row],[m1]]/व्यय_तालिका[[#Totals],[m1]] -> 6% | S44: =व्यय_तालिका[[#This Row],[m2]]/व्यय_तालिका[[#Totals],[m2]] -> 2% | T44: =व्यय_तालिका[[#This Row],[m3]]/व्यय_तालिका[[#Totals],[m3]] -> 10% | U44: =व्यय_तालिका[[#This Row],[m4]]/व्यय_तालिका[[#Totals],[m4]] -> 2% | V44: =व्यय_तालिका[[#This Row],[m5]]/व्यय_तालिका[[#Totals],[m5]] -> 8% | W44: =व्यय_तालिका[[#This Row],[m6]]/व्यय_तालिका[[#Totals],[m6]] -> 5% | X44: =व्यय_तालिका[[#This Row],[m7]]/व्यय_तालिका[[#Totals],[m7]] -> 8% | Y44: =व्यय_तालिका[[#This Row],[m8]]/व्यय_तालिका[[#Totals],[m8]] -> 9% | Z44: =व्यय_तालिका[[#This Row],[m9]]/व्यय_तालिका[[#Totals],[m9]] -> 10% | AA44: =व्यय_तालिका[[#This Row],[m10]]/व्यय_तालिका[[#Totals],[m10]] -> 1% | AB44: =व्यय_तालिका[[#This Row],[m11]]/व्यय_तालिका[[#Totals],[m11]] -> 5% | AC44: =व्यय_तालिका[[#This Row],[m12]]/व्यय_तालिका[[#Totals],[m12]] -> 3% | AD44: =व्यय_तालिका[[#This Row],[Yearly]]/व्यय_तालिका[[#Totals],[Yearly]] -> 6%
B45: अन्य व्यय (निर्दिष्ट करें) | D45: रु 14.00 | E45: रु 7.00 | F45: रु 24.00 | G45: रु 10.00 | H45: रु 7.00 | I45: रु 24.00 | J45: रु 2.00 | K45: रु 11.00 | L45: रु 21.00 | M45: रु 19.00 | N45: रु 19.00 | O45: रु 20.00 | P45: =SUM(व्यय_तालिका[[#This Row],[m1]:[m12]]) -> रु 178.00 | Q45: 1% | R45: =व्यय_तालिका[[#This Row],[m1]]/व्यय_तालिका[[#Totals],[m1]] -> 6% | S45: =व्यय_तालिका[[#This Row],[m2]]/व्यय_तालिका[[#Totals],[m2]] -> 3% | T45: =व्यय_तालिका[[#This Row],[m3]]/व्यय_तालिका[[#Totals],[m3]] -> 10% | U45: =व्यय_तालिका[[#This Row],[m4]]/व्यय_तालिका[[#Totals],[m4]] -> 4% | V45: =व्यय_तालिका[[#This Row],[m5]]/व्यय_तालिका[[#Totals],[m5]] -> 3% | W45: =व्यय_तालिका[[#This Row],[m6]]/व्यय_तालिका[[#Totals],[m6]] -> 9% | X45: =व्यय_तालिका[[#This Row],[m7]]/व्यय_तालिका[[#Totals],[m7]] -> 1% | Y45: =व्यय_तालिका[[#This Row],[m8]]/व्यय_तालिका[[#Totals],[m8]] -> 5% | Z45: =व्यय_तालिका[[#This Row],[m9]]/व्यय_तालिका[[#Totals],[m9]] -> 9% | AA45: =व्यय_तालिका[[#This Row],[m10]]/व्यय_तालिका[[#Totals],[m10]] -> 7% | AB45: =व्यय_तालिका[[#This Row],[m11]]/व्यय_तालिका[[#Totals],[m11]] -> 6% | AC45: =व्यय_तालिका[[#This Row],[m12]]/व्यय_तालिका[[#Totals],[m12]] -> 9% | AD45: =व्यय_तालिका[[#This Row],[Yearly]]/व्यय_तालिका[[#Totals],[Yearly]] -> 6%
B46: अन्य व्यय (निर्दिष्ट करें) | D46: रु 11.00 | E46: रु 8.00 | F46: रु 25.00 | G46: रु 11.00 | H46: रु 9.00 | I46: रु 24.00 | J46: रु 13.00 | K46: रु 14.00 | L46: रु 19.00 | M46: रु 24.00 | N46: रु 15.00 | O46: रु 7.00 | P46: =SUM(व्यय_तालिका[[#This Row],[m1]:[m12]]) -> रु 180.00 | Q46: 1% | R46: =व्यय_तालिका[[#This Row],[m1]]/व्यय_तालिका[[#Totals],[m1]] -> 5% | S46: =व्यय_तालिका[[#This Row],[m2]]/व्यय_तालिका[[#Totals],[m2]] -> 4% | T46: =व्यय_तालिका[[#This Row],[m3]]/व्यय_तालिका[[#Totals],[m3]] -> 10% | U46: =व्यय_तालिका[[#This Row],[m4]]/व्यय_तालिका[[#Totals],[m4]] -> 4% | V46: =व्यय_तालिका[[#This Row],[m5]]/व्यय_तालिका[[#Totals],[m5]] -> 4% | W46: =व्यय_तालिका[[#This Row],[m6]]/व्यय_तालिका[[#Totals],[m6]] -> 9% | X46: =व्यय_तालिका[[#This Row],[m7]]/व्यय_तालिका[[#Totals],[m7]] -> 5% | Y46: =व्यय_तालिका[[#This Row],[m8]]/व्यय_तालिका[[#Totals],[m8]] -> 6% | Z46: =व्यय_तालिका[[#This Row],[m9]]/व्यय_तालिका[[#Totals],[m9]] -> 8% | AA46: =व्यय_तालिका[[#This Row],[m10]]/व्यय_तालिका[[#Totals],[m10]] -> 9% | AB46: =व्यय_तालिका[[#This Row],[m11]]/व्यय_तालिका[[#Totals],[m11]] -> 5% | AC46: =व्यय_तालिका[[#This Row],[m12]]/व्यय_तालिका[[#Totals],[m12]] -> 3% | AD46: =व्यय_तालिका[[#This Row],[Yearly]]/व्यय_तालिका[[#Totals],[Yearly]] -> 6%
B47: विविध (अनिर्दिष्ट) | D47: रु 8.00 | E47: रु 20.00 | F47: रु 11.00 | G47: रु 11.00 | H47: रु 11.00 | I47: रु 20.00 | J47: रु 12.00 | K47: रु 16.00 | L47: रु 5.00 | M47: रु 7.00 | N47: रु 21.00 | O47: रु 3.00 | P47: =SUM(व्यय_तालिका[[#This Row],[m1]:[m12]]) -> रु 145.00 | Q47: 2% | R47: =व्यय_तालिका[[#This Row],[m1]]/व्यय_तालिका[[#Totals],[m1]] -> 3% | S47: =व्यय_तालिका[[#This Row],[m2]]/व्यय_तालिका[[#Totals],[m2]] -> 10% | T47: =व्यय_तालिका[[#This Row],[m3]]/व्यय_तालिका[[#Totals],[m3]] -> 4% | U47: =व्यय_तालिका[[#This Row],[m4]]/व्यय_तालिका[[#Totals],[m4]] -> 4% | V47: =व्यय_तालिका[[#This Row],[m5]]/व्यय_तालिका[[#Totals],[m5]] -> 4% | W47: =व्यय_तालिका[[#This Row],[m6]]/व्यय_तालिका[[#Totals],[m6]] -> 7% | X47: =व्यय_तालिका[[#This Row],[m7]]/व्यय_तालिका[[#Totals],[m7]] -> 5% | Y47: =व्यय_तालिका[[#This Row],[m8]]/व्यय_तालिका[[#Totals],[m8]] -> 7% | Z47: =व्यय_तालिका[[#This Row],[m9]]/व्यय_तालिका[[#Totals],[m9]] -> 2% | AA47: =व्यय_तालिका[[#This Row],[m10]]/व्यय_तालिका[[#Totals],[m10]] -> 3% | AB47: =व्यय_तालिका[[#This Row],[m11]]/व्यय_तालिका[[#Totals],[m11]] -> 7% | AC47: =व्यय_तालिका[[#This Row],[m12]]/व्यय_तालिका[[#Totals],[m12]] -> 1% | AD47: =व्यय_तालिका[[#This Row],[Yearly]]/व्यय_तालिका[[#Totals],[Yearly]] -> 5%
B48: कुल व्यय | D48: =SUBTOTAL(109,व्यय_तालिका[m1]) -> रु 236.00 | E48: =SUBTOTAL(109,व्यय_तालिका[m2]) -> रु 205.00 | F48: =SUBTOTAL(109,व्यय_तालिका[m3]) -> रु 249.00 | G48: =SUBTOTAL(109,व्यय_तालिका[m4]) -> रु 261.00 | H48: =SUBTOTAL(109,व्यय_तालिका[m5]) -> रु 257.00 | I48: =SUBTOTAL(109,व्यय_तालिका[m6]) -> रु 274.00 | J48: =SUBTOTAL(109,व्यय_तालिका[m7]) -> रु 266.00 | K48: =SUBTOTAL(109,व्यय_तालिका[m8]) -> रु 235.00 | L48: =SUBTOTAL(109,व्यय_तालिका[m9]) -> रु 230.00 | M48: =SUBTOTAL(109,व्यय_तालिका[m10]) -> रु 259.00 | N48: =SUBTOTAL(109,व्यय_तालिका[m11]) -> रु 296.00 | O48: =SUBTOTAL(109,व्यय_तालिका[m12]) -> रु 231.00 | P48: =SUBTOTAL(109,व्यय_तालिका[Yearly]) -> रु 2,999.00 | Q48: =SUBTOTAL(109,व्यय_तालिका[Ind %]) -> 100% | R48: =SUBTOTAL(109,व्यय_तालिका[% m1]) -> 100% | S48: =SUBTOTAL(109,व्यय_तालिका[% m2]) -> 100% | T48: =SUBTOTAL(109,व्यय_तालिका[% m3]) -> 100% | U48: =SUBTOTAL(109,व्यय_तालिका[% m4]) -> 100% | V48: =SUBTOTAL(109,व्यय_तालिका[% m5]) -> 100% | W48: =SUBTOTAL(109,व्यय_तालिका[% m6]) -> 100% | X48: =SUBTOTAL(109,व्यय_तालिका[% m7]) -> 100% | Y48: =SUBTOTAL(109,व्यय_तालिका[% m8]) -> 100% | Z48: =SUBTOTAL(109,व्यय_तालिका[% m9]) -> 100% | AA48: =SUBTOTAL(109,व्यय_तालिका[% m10]) -> 100% | AB48: =SUBTOTAL(109,व्यय_तालिका[% m11]) -> 100% | AC48: =SUBTOTAL(109,व्यय_तालिका[% m12]) -> 100% | AD48: =SUBTOTAL(109,व्यय_तालिका[% y]) -> 100%
B50: सकल लाभ | D50: =D26-व्यय_तालिका[[#Totals],[m1]] -> रु 123.00 | E50: =E26-व्यय_तालिका[[#Totals],[m2]] -> रु 175.00 | F50: =F26-व्यय_तालिका[[#Totals],[m3]] -> रु 256.00 | G50: =G26-व्यय_तालिका[[#Totals],[m4]] -> रु 109.00 | H50: =H26-व्यय_तालिका[[#Totals],[m5]] -> रु 156.00 | I50: =I26-व्यय_तालिका[[#Totals],[m6]] -> रु -8.00 | J50: =J26-व्यय_तालिका[[#Totals],[m7]] -> रु 32.00 | K50: =K26-व्यय_तालिका[[#Totals],[m8]] -> रु 214.00 | L50: =L26-व्यय_तालिका[[#Totals],[m9]] -> रु 100.00 | M50: =M26-व्यय_तालिका[[#Totals],[m10]] -> रु 148.00 | N50: =N26-व्यय_तालिका[[#Totals],[m11]] -> रु 179.00 | O50: =O26-व्यय_तालिका[[#Totals],[m12]] -> रु 359.00 | P50: =SUM(D50:O50) -> रु 1,843.00 | R50: =D50/$P$50 -> 7% | S50: =E50/$P$50 -> 9% | T50: 14% | U50: 6% | V50: 8% | W50: -0% | X50: 2% | Y50: 12% | Z50: 5% | AA50: 8% | AB50: 10% | AC50: 19% | AD50: 100%
